bitfinex-derivatives/quotes_ETHF0:USTF0_20251126
["timestamp","ask_amount","ask_price","bid_price","bid_amount"]
[1764131917248,0.7583,2935.5,2935.4,0.4859]
[1764131917442,0.2769,2936.0,2935.4,1.1367131]
[1764131917950,0.2769,2936.0,2935.4,1.14624091]
[1764131918649,0.4814,2935.8,2935.7,1.1367131]
[1764131918849,0.7583,2936.0,2935.9,0.4859]
[1764131920250,0.7583,2936.0,2935.5,1.1888131]
[1764131920848,0.4814,2935.6,2935.5,1.0239]
[1764131921350,0.4814,2935.6,2935.5,1.6747131]
[1764131921544,0.2769,2936.0,2935.5,1.6747131]
[1764131921946,0.7583,2936.0,2935.9,0.4859]
[1764131922545,0.2769,2936.0,2935.9,0.4859]
[1764131922750,0.49034002,2936.2,2936.1,0.4859]
[1764131925345,0.00894002,2936.2,2936.1,0.4859]
[1764131939460,0.49034002,2936.2,2936.1,0.4859]
[1764131940658,0.7583,2936.0,2935.9,0.4859]
[1764131941362,0.2769,2936.0,2935.9,0.4859]
[1764131941564,0.49034002,2936.2,2936.1,0.4859]
[1764131942366,0.00894002,2936.2,2936.1,0.4859]
[1764131958171,1.19395042,2937.0,2936.9,0.4935]
[1764131958372,1.19395042,2937.5,2937.0,0.4935]
[1764131958574,0.89476501,2937.4,2937.0,0.4935]
[1764131958778,0.2769,2937.5,2937.0,0.4935]
[1764131958971,1.37811138,2937.4,2937.3,0.4935]
[1764131959166,1.38206053,2937.4,2937.3,0.4935]
[1764131959377,0.00394915,2937.4,2937.3,0.4935]
[1764131959572,0.00510604,2937.6,2937.5,0.4935]
[1764131960075,0.00510604,2937.6,2937.5,1.12712122]
[1764131960676,0.00510604,2937.6,2937.5,1.12956156]
[1764131960677,0.00848154,2937.6,2937.5,1.12956156]
[1764131961071,0.2853,2938.0,2937.9,0.4935]
[1764131961276,0.7687,2938.0,2937.9,0.4935]
[1764131961974,0.77216923,2938.0,2937.9,0.4935]
[1764131964079,0.28876923,2938.0,2937.9,0.4935]
[1764131964380,0.4834,2937.6,2937.5,3.10394034]
[1764131964975,0.2795,2938.0,2937.5,3.10394034]
[1764131965176,0.2837451,2938.0,2937.5,3.10394034]
[1764131965976,0.7671451,2938.0,2937.9,0.4935]
[1764131966485,0.2795,2938.5,2938.1,0.4935]
[1764131966779,0.7629,2938.5,2938.4,0.4935]
[1764131967587,0.76641558,2938.5,2938.4,0.4935]
[1764131967777,0.76641558,2938.5,2938.0,0.63362122]
[1764131968287,0.4834,2938.1,2938.0,1.12712122]
[1764131968677,0.4834,2938.1,2937.7,0.63362122]
[1764131968881,0.4834,2937.8,2937.7,1.12712122]
[1764131969077,0.4834,2937.8,2937.7,2.35812122]
[1764131969281,0.7629,2938.0,2937.9,0.4935]
[1764131970487,0.4834,2937.6,2937.5,0.49594034]
[1764131970689,0.4834,2937.6,2937.5,3.39694034]
[1764131971279,0.2795,2938.0,2937.5,3.39694034]
[1764131973084,0.4834,2937.6,2937.5,3.39694034]
[1764131973879,0.2795,2938.0,2937.5,3.39694034]
[1764131974793,0.2795,2938.0,2937.5,3.54424034]
[1764131975481,0.7629,2938.0,2937.9,0.4935]
[1764131975682,0.77601558,2938.5,2938.4,0.4927]
[1764131978396,0.77601558,2938.5,2938.1,0.63362122]
[1764131978991,0.493,2938.2,2938.1,0.4927]
[1764131979296,0.493,2938.2,2937.6,0.17028]
[1764131981395,0.493,2938.2,2937.8,0.63362122]
[1764131981587,0.493,2938.2,2938.1,0.4927]
[1764131983099,0.493,2938.2,2937.8,0.63362122]
[1764131983295,0.493,2938.2,2938.1,0.4927]
[1764131983803,0.493,2938.2,2937.8,0.63362122]
[1764131984602,0.7668,2938.0,2937.9,1.14165134]
[1764131987206,0.35816769,2938.0,2937.9,1.14165134]
[1764131988001,0.28301558,2938.5,2937.9,1.14165134]
[1764131988205,0.28301558,2938.5,2938.0,0.2796]
[1764131988802,0.493,2938.3,2938.2,1.14165134]
[1764131989201,0.49651558,2938.5,2938.4,0.4927]
[1764131989403,0.493,2938.3,2938.2,1.14165134]
[1764131990909,0.493,2938.3,2938.2,0.64895134]
[1764131991295,0.493,2937.9,2937.8,0.4927]
[1764131995707,0.2738,2938.0,2937.9,0.4927]
[1764131996007,0.493,2938.0,2937.9,0.4927]
[1764131996209,0.27731558,2938.5,2938.0,0.2796]
[1764131996404,0.77031558,2938.5,2938.4,0.4927]
[1764131996608,0.00351558,2938.5,2938.4,0.4927]
[1764131996814,0.49651558,2938.5,2938.4,0.4927]
[1764131997812,0.00351558,2938.5,2938.4,0.4927]
[1764131998411,0.00351558,2938.5,2938.4,1.14165134]
[1764131999914,0.77031558,2938.5,2938.0,0.92855134]
[1764132000611,0.77031558,2938.5,2938.4,0.4927]
[1764132001017,0.00351558,2938.5,2938.4,0.4927]
[1764132001311,0.2795,2939.0,2938.4,0.4927]
[1764132001508,0.2795,2939.5,2939.0,0.2124]
[1764132001714,0.2795,2939.5,2939.4,0.4492]
[1764132001715,0.7339,2939.5,2939.4,0.4492]
[1764132001906,0.4544,2939.2,2939.1,1.09815134]
[1764132002110,0.4544,2939.2,2939.1,0.4492]
[1764132002310,0.4544,2939.1,2939.0,1.90630604]
[1764132002511,0.4544,2939.1,2939.0,0.00510604]
[1764132003119,0.4544,2939.1,2939.0,0.45430604]
[1764132003416,0.4544,2939.1,2939.0,0.00510604]
[1764132003617,0.45741153,2939.2,2939.1,0.4492]
[1764132004926,0.4544,2939.1,2939.0,0.00510604]
[1764132008523,0.91705042,2939.8,2939.7,0.4711]
[1764132008729,0.7904,2940.0,2939.9,0.4711]
[1764132009030,0.4954,2939.3,2939.2,0.783]
[1764132009218,0.4954,2939.3,2939.2,1.2541]
[1764132009620,0.49913319,2939.3,2939.2,0.78640333]
[1764132010126,0.49913319,2939.3,2939.2,0.00340333]
[1764132010727,0.49913319,2939.3,2939.2,1.12345467]
[1764132011121,0.49913319,2939.3,2939.2,0.00340333]
[1764132016239,0.4954,2937.9,2937.8,2.98657101]
[1764132016445,0.64895134,2937.9,2937.0,0.2813]
[1764132016729,0.64895134,2937.9,2936.5,0.2813]
[1764132016730,1.29790268,2937.1,2936.5,0.2813]
[1764132016923,0.64895134,2936.6,2936.5,0.2813]
[1764132017426,0.64895134,2936.6,2936.5,0.28408152]
[1764132017427,0.65160655,2936.6,2936.5,0.28408152]
[1764132018537,0.00265521,2936.6,2936.5,0.28408152]
[1764132021533,0.00265521,2936.6,2936.5,0.75518152]
[1764132022933,0.00510604,2936.8,2936.7,0.4711]
[1764132023836,0.00878879,2936.8,2936.7,0.4711]
[1764132032435,0.17027,2937.8,2937.5,0.2813]
[1764132033440,0.17343691,2937.8,2937.5,0.2813]
[1764132039342,0.00316691,2937.8,2937.5,0.2813]
[1764132041744,0.00316691,2937.8,2937.7,0.4471]
[1764132042446,0.91402302,2937.8,2937.7,0.4471]
[1764132042848,0.91402302,2937.8,2937.5,0.2813]
[1764132043048,0.00316691,2937.8,2937.5,0.2813]
[1764132043250,0.91182409,2937.7,2937.5,0.2813]
[1764132043445,0.00316691,2937.8,2937.5,0.2813]
[1764132043646,0.91182411,2937.7,2937.6,0.4471]
[1764132046351,2.13410941,2937.7,2937.6,0.4471]
[1764132046652,2.76738812,2937.7,2937.6,0.4471]
[1764132047339,2.93766812,2937.7,2937.6,0.4471]
[1764132049753,0.17028,2937.6,2937.5,0.2813]
[1764132050051,0.17031,2937.1,2937.0,0.2813]
[1764132050253,0.80358871,2937.1,2936.5,0.28408152]
[1764132050449,0.63327871,2936.7,2936.5,0.28408152]
[1764132050656,0.91182411,2936.6,2936.5,0.28408152]
[1764132051252,2.4623647,2936.7,2936.5,0.28408152]
[1764132051456,0.91182411,2936.6,2936.5,0.28408152]
[1764132053053,0.91182411,2936.6,2936.5,0.73118152]
[1764132053260,0.91689621,2936.6,2936.5,0.73118152]
[1764132053562,1.82872032,2936.6,2936.5,0.73118152]
[1764132056458,0.91689621,2936.6,2936.5,0.73118152]
[1764132056659,1.82872032,2936.6,2936.5,0.73118152]
[1764132056859,0.91689621,2936.6,2936.5,0.73118152]
[1764132057066,1.82872032,2936.6,2936.5,0.73118152]
[1764132057267,0.91689621,2936.6,2936.5,0.73118152]
[1764132057561,0.91689621,2936.7,2936.6,0.4471]
[1764132057962,1.83189368,2936.7,2936.6,0.4471]
[1764132061472,0.91499747,2936.7,2936.6,0.4471]
[1764132062370,0.91499747,2936.7,2936.5,0.28408152]
[1764132062962,0.91499747,2936.7,2936.6,0.4471]
[1764132064768,0.91689621,2937.0,2936.9,0.4785]
[1764132064969,0.91689621,2937.0,2936.5,0.28408152]
[1764132064970,1.83133398,2937.0,2936.5,0.28408152]
[1764132065169,0.91443777,2936.9,2936.5,0.28408152]
[1764132065371,1.83133398,2936.9,2936.7,0.468]
[1764132065672,0.91443777,2936.8,2936.5,0.28408152]
[1764132067869,0.91443777,2936.8,2936.5,0.75208152]
[1764132068070,0.91443777,2936.8,2936.5,0.28408152]
[1764132068468,1.83133398,2936.8,2936.5,0.28408152]
[1764132068676,2.00167398,2936.7,2936.5,0.28408152]
[1764132068973,0.91689621,2936.6,2936.5,0.28408152]
[1764132069173,1.83133398,2936.6,2936.5,0.28408152]
[1764132070366,0.91443777,2936.6,2936.5,0.28408152]
[1764132070563,0.91443777,2936.6,2936.5,0.75208152]
[1764132070768,0.9147976,2936.6,2936.5,0.75208152]
[1764132076279,1.83079481,2936.6,2936.5,0.75208152]
[1764132076580,1.83079481,2936.6,2936.5,0.28408152]
[1764132078380,0.9147976,2936.6,2936.5,0.28408152]
[1764132079384,2.13612722,2936.6,2936.5,0.28408152]
[1764132086189,0.17035,2936.4,2935.5,0.2886]
[1764132086393,0.17037,2936.1,2935.5,0.7566]
[1764132086690,0.91879587,2935.8,2935.7,0.468]
[1764132086887,0.9147976,2935.8,2935.7,0.468]
[1764132087092,0.91879587,2936.2,2936.1,0.468]
[1764132087284,0.91879587,2936.2,2936.1,0.4721252]
[1764132087482,1.83548899,2936.2,2936.1,0.4721252]
[1764132088288,1.83548899,2936.2,2936.1,0.0041252]
[1764132088490,2.14175428,2936.2,2936.1,0.0041252]
[1764132089293,2.31211428,2936.2,2935.9,0.00510604]
[1764132089487,1.22506116,2936.0,2935.5,0.7566]
[1764132089682,0.63371549,2935.7,2935.5,0.7566]
[1764132089892,0.91669312,2935.6,2935.5,0.2886]
[1764132090286,0.91950789,2935.6,2935.5,0.29144763]
[1764132090498,0.91950789,2935.6,2935.5,0.75944763]
[1764132092598,1.83940144,2936.4,2936.3,0.468]
[1764132092797,0.49940604,2936.4,2936.3,0.468]
[1764132093100,0.49940604,2936.4,2935.7,0.63371549]
[1764132093600,0.50301352,2936.4,2935.7,0.63371549]
[1764132094098,0.50301352,2936.4,2936.3,0.468]
[1764132095594,1.72807468,2936.4,2936.3,0.468]
[1764132095996,0.50301352,2936.4,2936.3,0.468]
[1764132096305,1.72807468,2936.4,2936.3,0.468]
[1764132097904,0.6572,2937.0,2936.9,0.4567]
[1764132098107,2.61516116,2937.0,2936.9,0.4567]
[1764132098399,1.3901,2937.0,2936.9,0.4567]
[1764132098601,0.6572,2937.0,2936.9,0.4567]
[1764132098799,0.65988647,2937.0,2936.9,0.4567]
[1764132099605,1.88494763,2937.0,2936.9,0.4567]
[1764132100107,1.39278647,2937.0,2936.9,0.4567]
[1764132100509,2.61784763,2937.0,2936.9,0.4567]
[1764132101507,0.65988647,2937.0,2936.9,0.4567]
[1764132101703,0.00268647,2937.0,2936.9,0.4567]
[1764132102819,1.96064763,2937.0,2936.5,0.2262]
[1764132103017,0.4524,2936.6,2936.5,0.4567]
[1764132105415,0.4859,2936.9,2936.5,0.4567]
[1764132105616,1.22506116,2936.7,2936.6,0.4567]
[1764132105816,1.71096116,2936.9,2936.6,0.4567]
[1764132106017,1.22506116,2936.7,2936.6,0.4567]
[1764132106523,1.67746116,2936.7,2936.6,0.4567]
[1764132106711,1.22506116,2936.7,2936.6,0.4567]
[1764132106915,0.4859,2936.9,2936.5,0.63371549]
[1764132108627,0.4859,2936.9,2936.7,0.64948566]
[1764132113234,0.2805,2935.5,2935.3,4.21813084]
[1764132113432,0.2805,2935.5,2935.3,0.6545917]
[1764132114237,0.2805,2935.5,2935.3,0.65825246]
[1764132114536,0.2805,2935.5,2935.3,0.0087668]
[1764132117337,0.2805,2935.5,2934.2,1.78000403]
[1764132117338,0.2805,2934.5,2933.7,1.11329162]
[1764132117839,0.2805,2934.5,2933.7,2.04936777]
[1764132118143,0.28487401,2934.5,2933.8,0.00510604]
[1764132122444,0.73727401,2934.5,2933.8,0.00510604]
[1764132123244,0.00437401,2934.5,2934.3,0.17047]
[1764132123847,0.28117401,2934.5,2934.3,0.17047]
[1764132124643,0.4613,2934.4,2934.3,0.17047]
[1764132124840,0.4613,2934.4,2934.3,2.254]
[1764132126042,0.2965,2934.0,2933.8,0.00510604]
[1764132126237,0.2965,2934.0,2933.9,4.459]
[1764132126438,0.4955,2933.9,2933.8,0.00510604]
[1764132126639,0.4955,2933.9,2933.8,3.55410604]
[1764132127850,0.4955,2933.9,2933.8,0.00510604]
[1764132130260,0.2965,2934.0,2933.8,0.00510604]
[1764132130547,0.792,2934.0,2933.8,0.00510604]
[1764132132856,0.4955,2933.9,2933.8,0.00510604]
[1764132134052,0.2965,2934.0,2933.8,0.00510604]
[1764132134956,0.2965,2934.0,2933.8,0.17560604]
[1764132137359,0.00510604,2934.2,2933.8,0.17560604]
[1764132137562,0.00510604,2934.2,2934.0,0.93607615]
[1764132140652,0.00510604,2934.2,2934.1,0.65055534]
[1764132142858,0.2965,2934.0,2933.9,0.1705]
[1764132143060,0.2965,2934.0,2933.9,0.82105534]
[1764132147558,0.48920604,2934.2,2934.0,0.17049]
[1764132149259,0.4955,2934.1,2934.0,0.17049]
[1764132149465,0.4955,2934.1,2934.0,3.76749]
[1764132150760,0.4955,2934.1,2934.0,3.597]
[1764132153669,0.4955,2934.1,2934.0,4.24755534]
[1764132154165,0.4955,2934.1,2934.0,0.65055534]
[1764132154371,0.98470604,2934.2,2934.0,0.65055534]
[1764132154668,0.4955,2934.1,2934.0,0.65055534]
[1764132158972,0.7879,2934.0,2933.9,2.55]
[1764132159160,0.4849,2933.9,2933.8,0.00510604]
[1764132159359,0.4849,2933.9,2933.8,4.40110604]
[1764132159570,0.4849,2933.9,2933.8,0.00510604]
[1764132160366,0.4849,2933.9,2933.8,0.65566138]
[1764132160870,0.4849,2933.9,2933.8,0.00510604]
[1764132175184,0.4849,2933.4,2933.3,2.12156161]
[1764132176180,0.4849,2933.4,2933.3,2.12548171]
[1764132177369,0.2924,2933.5,2933.3,2.12548171]
[1764132177571,0.2924,2933.5,2933.4,0.17053]
[1764132181483,1.4556,2934.0,2933.4,0.17053]
[1764132181683,1.4556,2934.0,2933.9,0.63456161]
[1764132183090,1.0008,2934.0,2933.9,0.63456161]
[1764132183288,1.4556,2934.0,2933.9,0.63456161]
[1764132188484,1.0008,2934.0,2933.9,0.63456161]
[1764132190988,1.4809,2934.0,2933.9,0.63456161]
[1764132192295,0.7725,2934.0,2933.9,0.63456161]
[1764132194891,0.2924,2934.0,2933.9,0.63456161]
[1764132197702,0.7725,2934.0,2933.9,0.63456161]
[1764132198902,0.2924,2934.0,2933.9,0.63456161]
[1764132199602,0.7725,2934.0,2933.9,0.63456161]
[1764132222526,0.4533,2933.8,2933.7,0.17051]
[1764132222724,0.4533,2933.7,2933.6,3.66090547]
[1764132222919,0.4533,2933.7,2933.6,9.05290547]
[1764132223126,0.4533,2933.7,2933.6,6.02656161]
[1764132228328,1.0571,2933.8,2933.6,6.02656161]
[1764132230542,1.0571,2933.8,2933.7,0.65058186]
[1764132232533,1.0571,2933.8,2933.7,1.30116372]
[1764132232733,1.0571,2933.8,2933.7,0.65058186]
[1764132233434,1.0571,2933.8,2933.7,1.30116372]
[1764132233639,1.0571,2933.8,2933.7,0.65058186]
[1764132236844,1.5104,2933.8,2933.7,0.65058186]
[1764132237444,1.5104,2933.8,2933.7,6.04158186]
[1764132238841,1.5104,2933.8,2933.7,0.65058186]
[1764132239045,1.5104,2933.8,2933.7,6.04158186]
[1764132240946,1.5104,2933.8,2933.7,0.65058186]
[1764132241244,1.5104,2933.8,2933.7,6.04158186]
[1764132244641,1.0571,2933.8,2933.7,6.04158186]
[1764132245151,1.5398,2933.8,2933.7,6.04158186]
[1764132248251,1.0571,2933.8,2933.7,6.04158186]
[1764132248442,1.5088,2933.8,2933.7,6.04158186]
[1764132250251,1.0251,2933.8,2933.7,6.04158186]
[1764132254055,0.5734,2933.8,2933.7,6.04158186]
[1764132255156,0.567,2933.9,2933.7,6.04158186]
[1764132257657,0.00510604,2934.2,2933.8,0.65058186]
[1764132257953,0.4517,2934.2,2934.1,0.65058186]
[1764132258158,0.4517,2934.1,2934.0,1.30116372]
[1764132258353,1.0863,2934.1,2934.0,1.30116372]
[1764132259559,1.0863,2934.1,2934.0,0.65058186]
[1764132259757,1.0863,2934.1,2933.7,8.41734386]
[1764132259758,0.4517,2933.8,2933.7,1.53914386]
[1764132259965,0.65058186,2933.9,2933.5,0.2681]
[1764132260166,1.56954366,2933.9,2933.2,0.65058186]
[1764132260463,0.90911824,2933.8,2933.5,0.91868186]
[1764132260665,0.90911824,2933.7,2933.5,0.91868186]
[1764132260865,0.9189618,2934.0,2933.5,0.91868186]
[1764132261066,0.9189618,2934.0,2933.5,0.2681]
[1764132261266,1.82690493,2934.0,2933.5,0.2681]
[1764132262365,0.90794313,2933.9,2933.5,0.2681]
[1764132262561,0.90794313,2933.8,2933.5,0.2681]
[1764132262762,1.5535618,2934.1,2933.5,0.2681]
[1764132262965,0.90682683,2934.0,2933.5,0.2681]
[1764132263169,0.90682683,2933.9,2933.5,0.2681]
[1764132263367,0.90682683,2933.8,2933.5,0.2681]
[1764132263568,1.5535618,2934.1,2933.5,0.2681]
[1764132263865,0.90647015,2934.0,2933.7,0.65058186]
[1764132264070,0.6346,2934.1,2934.0,0.2681]
[1764132265169,0.6346,2934.1,2934.0,0.91868186]
[1764132266365,0.6346,2934.1,2934.0,1.39008186]
[1764132268170,0.6346,2934.1,2934.0,0.2681]
[1764132268370,6.6346,2934.1,2933.5,0.2681]
[1764132268664,0.6346,2934.1,2933.5,0.91868186]
[1764132268866,0.6346,2934.1,2933.5,1.39008186]
[1764132274072,0.6346,2934.1,2934.0,0.2681]
[1764132277171,0.6346,2934.1,2934.0,0.7395]
[1764132284882,0.6346,2934.1,2934.0,1.39008186]
[1764132285482,0.6579,2934.6,2934.0,1.39008186]
[1764132285483,0.6579,2934.6,2934.5,0.7897]
[1764132285780,0.6579,2934.6,2934.5,1.44028186]
[1764132286478,0.66217941,2934.6,2934.5,1.44028186]
[1764132292684,0.66217941,2934.6,2934.5,1.42383621]
[1764132297791,0.00427941,2934.6,2934.5,1.42383621]
[1764132300296,0.00427941,2934.6,2934.5,0.7897]
[1764132306507,0.00427941,2934.6,2934.5,0.2974]
[1764132306906,0.00427941,2934.6,2934.1,1.193]
[1764132307105,0.00427941,2934.6,2934.1,1.6449]
[1764132307407,0.00427941,2934.6,2934.5,0.2965]
[1764132308608,0.90954177,2934.6,2934.5,0.2965]
[1764132310008,0.00427941,2934.6,2934.5,0.2965]
[1764132310305,0.90981865,2934.6,2934.5,0.2965]
[1764132310709,0.00427941,2934.6,2934.5,0.2965]
[1764132311107,0.00427941,2934.6,2934.5,0.7484]
[1764132311304,0.00427941,2934.6,2934.5,1.38253621]
[1764132312309,0.00510604,2934.8,2934.7,0.4519]
[1764132313013,0.4988,2935.0,2934.9,0.4519]
[1764132313014,0.37054879,2935.0,2934.9,0.4519]
[1764132313210,0.37418109,2935.0,2934.9,1.08603621]
[1764132316308,0.693,2935.6,2935.5,0.7484]
[1764132317310,0.69707073,2935.6,2935.5,0.7513924]
[1764132318515,0.00407073,2935.6,2935.5,0.7513924]
[1764132326826,0.00407073,2935.6,2935.5,0.2994924]
[1764132328622,0.00407073,2935.6,2935.5,0.7513924]
[1764132352144,0.4379,2936.0,2935.9,0.484]
[1764132352345,1.34447354,2936.0,2935.9,0.484]
[1764132353154,1.34814196,2936.0,2935.9,0.484]
[1764132358354,2.26391187,2936.0,2935.9,0.484]
[1764132362748,2.26391187,2936.0,2935.7,0.484]
[1764132362956,0.90657354,2935.9,2935.7,0.484]
[1764132363658,0.90657354,2935.9,2935.8,0.4712]
[1764132367557,0.90657354,2935.9,2935.5,0.2994924]
[1764132378867,0.90657354,2935.8,2935.5,0.2994924]
[1764132379064,0.91943833,2936.0,2935.9,0.4655]
[1764132379265,1.82635914,2936.0,2935.7,1.1154611]
[1764132379571,0.90692081,2935.9,2935.7,1.1154611]
[1764132379763,0.90692081,2935.8,2935.7,1.1154611]
[1764132389482,0.4436,2935.9,2935.8,0.4655]
[1764132392287,0.4436,2935.9,2935.5,0.2994924]
[1764132394383,0.4436,2935.9,2935.8,0.4655]
[1764132401678,1.34924387,2935.9,2935.8,0.4655]
[1764132410795,1.34924387,2935.9,2935.5,0.2994924]
[1764132410997,0.90564387,2935.8,2935.5,0.7608924]
[1764132411289,0.4436,2935.9,2935.5,0.7608924]
[1764132411594,0.90555189,2935.8,2935.5,0.7608924]
[1764132411796,0.4436,2935.9,2935.5,0.7608924]
[1764132411996,0.90556487,2935.8,2935.5,0.7608924]
[1764132412289,0.90556487,2935.7,2935.5,0.7608924]
[1764132412496,0.4436,2935.9,2935.5,0.7608924]
[1764132412689,0.90552475,2935.8,2935.5,0.7608924]
[1764132412891,0.90552475,2935.7,2935.6,0.4614]
[1764132415292,0.90552475,2935.7,2935.5,0.2994924]
[1764132415500,0.90552475,2935.6,2935.5,0.2994924]
[1764132416398,0.90552475,2935.6,2935.5,0.0029924]
[1764132417403,0.90552475,2935.6,2935.5,0.2715924]
[1764132418902,0.90552475,2935.6,2935.5,0.0029924]
[1764132421910,0.90552475,2935.6,2935.5,0.2899924]
[1764132424098,0.90552475,2935.6,2935.5,0.7544924]
[1764132427107,0.90552475,2935.6,2935.5,0.0029924]
[1764132427902,0.91576991,2935.6,2935.5,0.0029924]
[1764132428302,0.91576991,2935.6,2935.0,0.2965]
[1764132428604,1.82129466,2935.6,2935.0,0.2965]
[1764132428802,0.90552475,2935.5,2935.0,0.2965]
[1764132429107,0.90552475,2935.4,2935.0,0.763]
[1764132429409,0.90552475,2935.3,2935.2,0.4665]
[1764132430401,0.5841,2935.4,2935.3,0.4665]
[1764132430604,1.48803722,2935.4,2935.3,0.4665]
[1764132431202,1.48803722,2935.4,2935.0,0.29924027]
[1764132431417,0.90393722,2935.3,2935.0,0.29924027]
[1764132431602,0.5841,2935.4,2935.0,0.29924027]
[1764132431802,0.90395664,2935.3,2935.0,0.29924027]
[1764132432105,0.5841,2935.4,2935.0,0.29924027]
[1764132432303,0.90387853,2935.3,2935.0,0.29924027]
[1764132432509,0.90387853,2935.2,2935.0,0.00274027]
[1764132432709,0.90387853,2935.1,2935.0,0.00274027]
[1764132432914,0.1952,2934.6,2934.5,0.4665]
[1764132433109,0.1952,2934.6,2934.5,0.7478]
[1764132433302,0.1952,2934.6,2934.5,0.2813]
[1764132433804,1.18714675,2934.6,2934.5,0.2813]
[1764132434010,1.18714675,2934.6,2934.5,0.75047765]
[1764132437509,1.18714675,2934.6,2934.5,0.28397765]
[1764132438109,1.18714675,2934.6,2934.5,0.00267765]
[1764132439014,0.1952,2934.1,2934.0,0.7346]
[1764132439708,0.91576991,2934.6,2934.0,0.7346]
[1764132439909,1.11096991,2934.6,2934.5,0.7478]
[1764132440111,0.1952,2934.6,2934.5,0.41050726]
[1764132440308,1.18655219,2934.6,2934.5,0.69180726]
[1764132440508,1.18655219,2934.6,2934.5,0.28500726]
[1764132442719,1.18655219,2934.6,2934.5,0.00370726]
[1764132445416,1.18655219,2934.6,2934.5,0.75150726]
[1764132445622,0.99135219,2934.6,2934.5,0.75150726]
[1764132446321,0.00510604,2934.8,2934.7,0.4665]
[1764132447024,0.99610075,2934.8,2934.7,0.4665]
[1764132455124,7.5e-07,2934.8,2934.7,1.10034763]
[1764132455328,1.80736576,2935.4,2935.3,0.4918]
[1764132455638,1.0723,2935.4,2935.3,0.4918]
[1764132456033,1.0723,2935.4,2935.0,0.2824]
[1764132456327,0.4882,2935.4,2935.0,0.2824]
[1764132457632,0.28480604,2935.5,2934.8,0.4918]
[1764132457633,0.4882,2934.9,2934.8,0.4918]
[1764132462037,0.4882,2934.6,2934.5,0.49550726]
[1764132462235,0.4882,2934.6,2934.5,0.00370726]
[1764132462434,0.4882,2934.6,2934.5,0.49550726]
[1764132465435,0.8516,2935.0,2934.5,0.77790726]
[1764132465640,0.5719,2935.0,2934.9,0.4918]
[1764132465933,1.0601,2935.0,2934.9,0.4918]
[1764132467244,2.03719267,2935.0,2934.9,0.4918]
[1764132468243,2.31689267,2935.0,2934.5,0.91995489]
[1764132468436,0.97709267,2934.9,2934.5,0.91995489]
[1764132468634,1.46529267,2934.9,2934.8,0.4918]
[1764132469544,0.97709267,2934.9,2934.8,1.12564763]
[1764132469847,0.5719,2935.0,2934.9,0.4918]
[1764132470144,1.54907464,2935.0,2934.9,0.4918]
[1764132470744,2.03727464,2935.0,2934.9,0.4918]
[1764132471135,1.54907464,2935.0,2934.9,0.4918]
[1764132472148,2.03727464,2935.0,2934.9,0.4918]
[1764132473343,0.4882,2934.6,2934.5,1.41175489]
[1764132473540,0.4882,2934.6,2934.5,1.12935489]
[1764132474443,0.4882,2934.6,2934.5,0.00370726]
[1764132476749,0.7679,2934.0,2933.9,0.65057306]
[1764132477049,0.2797,2934.5,2934.0,0.2824]
[1764132477246,0.4882,2934.3,2934.2,1.14237306]
[1764132477447,1.46651156,2934.3,2934.2,1.14237306]
[1764132477748,1.46651156,2934.3,2934.2,0.65457722]
[1764132478446,1.46651156,2934.3,2934.2,0.00400416]
[1764132483752,0.4552,2933.6,2933.5,1.717]
[1764132483952,0.7504,2933.5,2933.4,1.11917306]
[1764132484152,0.7504,2933.5,2933.4,0.65057306]
[1764132484854,0.75395179,2933.5,2933.4,0.65303024]
[1764132485758,0.75395179,2933.5,2933.4,0.00245718]
[1764132488760,0.45875179,2933.5,2933.4,0.47105718]
[1764132488960,0.00355179,2933.5,2933.4,0.47105718]
[1764132489561,0.00510604,2933.7,2933.6,0.4772]
[1764132489755,0.00510604,2933.7,2933.6,1.12777306]
[1764132490558,0.00870607,2933.7,2933.6,1.12777306]
[1764132496663,0.48330607,2933.7,2933.6,1.12777306]
[1764132496962,0.48330607,2933.7,2933.4,0.00245718]
[1764132497165,0.4746,2933.6,2933.5,0.65057306]
[1764132497368,0.4746,2933.6,2933.5,1.12777306]
[1764132498760,0.4746,2933.6,2933.5,1.41967306]
[1764132498967,0.00870607,2933.7,2933.6,0.4772]
[1764132500972,0.48330607,2933.7,2933.6,0.4772]
[1764132502665,0.00870607,2933.7,2933.6,0.4772]
[1764132503471,0.48330607,2933.7,2933.6,0.4772]
[1764132504975,0.00870607,2933.7,2933.6,0.4772]
[1764132507581,1.69720949,2934.4,2934.3,0.4772]
[1764132507874,1.45419797,2934.4,2934.3,0.4772]
[1764132508673,1.45731967,2934.4,2934.3,0.4772]
[1764132518679,0.457,2934.3,2934.2,1.12577306]
[1764132518977,1.43649573,2934.3,2934.2,1.12577306]
[1764132519185,1.43649573,2934.3,2934.2,0.4752]
[1764132529991,0.457,2934.1,2934.0,0.7671]
[1764132530191,1.43649573,2934.1,2934.0,0.4752]
[1764132530787,1.43649573,2934.1,2934.0,0.7572]
[1764132532294,1.43649573,2934.1,2934.0,0.4752]
[1764132533594,0.457,2933.9,2933.8,1.12577306]
[1764132533795,0.9802,2934.2,2934.1,0.4752]
[1764132533994,1.96016004,2934.2,2934.1,0.4752]
[1764132535493,1.50316004,2934.2,2934.1,0.4752]
[1764132536801,1.96016004,2934.2,2933.8,0.63440762]
[1764132537097,0.457,2933.9,2933.8,1.10960762]
[1764132537288,1.43784489,2933.9,2933.8,0.4752]
[1764132538098,1.43784489,2933.9,2933.5,0.2919]
[1764132538299,0.457,2933.9,2933.8,0.4752]
[1764132538498,0.98078873,2934.1,2934.0,0.4752]
[1764132538698,1.43778873,2934.1,2934.0,0.4752]
[1764132539194,1.43778873,2934.1,2934.0,0.7572]
[1764132539402,0.98078873,2934.1,2934.0,0.7572]
[1764132540093,1.43778873,2934.1,2934.0,0.7572]
[1764132540801,0.98078873,2934.1,2934.0,0.7572]
[1764132541505,1.43778873,2934.1,2934.0,0.4752]
[1764132541695,0.2874,2934.0,2933.5,2.70223498]
[1764132542001,0.4889,2933.9,2933.8,0.476]
[1764132542204,1.46965614,2933.9,2933.8,0.476]
[1764132543606,0.4889,2933.9,2933.8,0.476]
[1764132544099,0.4889,2933.5,2933.4,0.47845718]
[1764132547697,1.20708868,2934.0,2933.4,0.47845718]
[1764132547999,1.44510731,2933.9,2933.8,0.4686]